fUST/lending_fUST_20250918
["ID","MTS","AMOUNT","RATE_DAILY","PERIOD"]
[385955265,1758150639643,-151.0,0.00024885,2]
[385955266,1758150639653,-500.0,0.00024885,2]
[385955267,1758150639662,-241.8007978,0.00024885,2]
[385955268,1758150639671,-500.0,0.00024885,2]
[385955269,1758150639680,-500.0,0.00024885,2]
[385955270,1758150639690,-500.0,0.00024885,2]
[385955271,1758150639699,-181.08010149,0.00024885,2]
[385955272,1758150639708,-500.0,0.00024885,2]
[385955273,1758150639718,-500.0,0.00024885,2]
[385955274,1758150639727,-500.0,0.00024885,2]
[385955275,1758150639736,-500.0,0.00024885,2]
[385955276,1758150639744,-250.0,0.00024885,2]
[385955277,1758150639753,-500.0,0.00024885,2]
[385955278,1758150639762,-250.0,0.00024885,2]
[385955279,1758150639772,-500.0,0.00024885,2]
[385955280,1758150639781,-500.0,0.00024885,2]
[385955281,1758150639791,-500.0,0.00024885,2]
[385955282,1758150639800,-151.66680255,0.00024885,2]
[385955283,1758150639810,-323.55564877,0.00024897,2]
[385955284,1758150639819,-1294.22259506,0.00024897,2]
[385955285,1758150639828,-2912.0008389,0.00024897,2]
[385955286,1758150639838,-4596.38102446,0.00024897,2]
[385955287,1758150639850,-580.5093558,0.00024897,2]
[385955288,1758150639859,-402.99550702,0.00024897,2]
[385955289,1758150639868,-260.37762062,0.00024897,2]
[385955290,1758150639879,-325.76237576,0.00024897,2]
[385955297,1758150640773,-1025.84203171,0.00024897,2]
[385955298,1758150640785,-480.0,0.00024899,3]
[385955299,1758150640797,-480.0,0.00024899,3]
[385955300,1758150640808,-2907.32,0.00024899,3]
[385955301,1758150640820,-572.45,0.00024899,3]
[385955302,1758150640831,-6229.38796829,0.000249,2]
[385955303,1758150640844,-35024.99999999,0.000249,2]
[385955355,1758150647105,-8632.00000018,0.000249,2]
[385955356,1758150647230,-13386.23002226,0.000249,2]
[385955357,1758150647270,-14444.23339016,0.000249,2]
[385955363,1758150794510,161.3441542,0.00027621,30]
[385955364,1758150800977,687.27178735,0.000218,2]
[385955365,1758150801087,687.27178719,0.00022983,2]
[385955367,1758150853659,171.0,0.00020521,3]
[385955368,1758150911532,6500.97020489,0.00022,2]
[385955369,1758150986481,640.83842857,0.000218,2]
[385955370,1758150986550,640.83842855,0.00022983,2]
[385955373,1758151172423,598.08961068,0.000218,2]
[385955374,1758151172518,598.08961065,0.00022983,2]
[385955377,1758151356205,1136.24464688,0.000218,2]
[385955378,1758151356298,1136.24464679,0.00022983,2]
[385955418,1758151539095,1060.49719616,0.000218,2]
[385955419,1758151539226,1060.49719603,0.00022983,2]
[385955438,1758151654084,61286.1265129,0.000219,2]
[385955439,1758151660747,500.0,0.00023,2]
[385955440,1758151671061,500.0,0.00023,2]
[385955443,1758151681621,500.0,0.00023,2]
[385955444,1758151692348,500.0,0.00023,2]
[385955448,1758151713636,4348.56936,0.00028,120]
[385955449,1758151716768,7290.48025724,0.000225,3]
[385955451,1758151722426,500.0,0.00023,2]
[385955452,1758151724861,989.797383,0.000218,2]
[385955453,1758151724968,989.79738296,0.00022983,2]
[385955454,1758151733524,500.0,0.00023,2]
[385955455,1758151781661,500.0,0.00023,2]
[385955526,1758151831977,-300.0,0.00023544,2]
[385955528,1758151831987,-300.0,0.00023544,2]
[385955530,1758151831996,-300.0,0.00023544,2]
[385955532,1758151832006,-118.85130806,0.00023544,2]
[385956052,1758151837824,-181.14869194,0.00023544,2]
[385956054,1758151837834,-300.0,0.00023544,2]
[385956057,1758151837844,-1035.24130806,0.00023544,2]
[385956059,1758151837856,-164.75869194,0.00023544,2]
[385956061,1758151837865,-798.14130546,0.00023545,2]
[385956070,1758151837936,-25081.03215784,0.00023545,2]
[385956072,1758151837946,-173.0069709,0.00023768,2]
[385956074,1758151837955,-1197.06447217,0.00023771,2]
[385956076,1758151837964,-500.0,0.00023857,2]
[385956078,1758151837973,-500.0,0.00023857,2]
[385956080,1758151837982,-596.97055021,0.00023857,2]
[385956082,1758151837991,-49506.82217369,0.00023868,2]
[385956083,1758151838000,-1200.0,0.00023868,2]
[385956085,1758151838010,-480.0,0.00023869,3]
[385956088,1758151838020,-480.0,0.00023869,3]
[385956089,1758151838029,-480.0,0.00023869,3]
[385956091,1758151838038,-480.0,0.00023869,3]
[385956093,1758151838047,-480.0,0.00023869,3]
[385956096,1758151838056,-480.0,0.00023869,3]
[385956098,1758151838066,-518.41,0.00023869,3]
[385956100,1758151838075,-341.7726765,0.00023871,3]
[385956102,1758151838084,-480.0,0.00023871,3]
[385956103,1758151838094,-480.0,0.00023871,3]
[385956105,1758151838102,-480.0,0.00023871,3]
[385956107,1758151838111,-480.0,0.00023871,3]
[385956109,1758151838120,-480.0,0.00023871,3]
[385956111,1758151838129,-480.0,0.00023871,3]
[385956113,1758151838139,-480.0,0.00023871,3]
[385956115,1758151838151,-480.0,0.00023871,3]
[385956117,1758151838161,-480.0,0.00023871,3]
[385956119,1758151838171,-263.54,0.00023871,3]
[385956122,1758151838180,-480.0,0.00023871,3]
[385956123,1758151838190,-250.74,0.00023871,3]
[385956125,1758151838199,-480.0,0.00023871,3]
[385956127,1758151838208,-480.0,0.00023871,3]
[385956129,1758151838218,-480.0,0.00023871,3]
[385956131,1758151838227,-480.0,0.00023871,3]
[385956132,1758151838236,-480.0,0.00023871,3]
[385956133,1758151838246,-480.0,0.00023871,3]
[385956134,1758151838255,-480.0,0.00023871,3]
[385956135,1758151838264,-480.0,0.00023871,3]
[385956136,1758151838273,-480.0,0.00023871,3]
[385956137,1758151838282,-480.0,0.00023871,3]
[385956138,1758151838301,-480.0,0.00023871,3]
[385956139,1758151838311,-480.0,0.00023871,3]
[385956140,1758151838321,-480.0,0.00023871,3]
[385956141,1758151838331,-480.0,0.00023871,3]
[385956142,1758151838341,-480.0,0.00023871,3]
[385956143,1758151838351,-480.0,0.00023871,3]
[385956144,1758151838361,-480.0,0.00023871,3]
[385956145,1758151838372,-480.0,0.00023871,3]
[385956146,1758151838381,-480.0,0.00023871,3]
[385956147,1758151838391,-480.0,0.00023871,3]
[385956148,1758151838400,-480.0,0.00023871,3]
[385956149,1758151838410,-529.51083481,0.00023871,3]
[385956150,1758151838419,-480.0,0.00023871,3]
[385956151,1758151838429,-480.0,0.00023871,3]
[385956152,1758151838441,-480.0,0.00023871,3]
[385956153,1758151838450,-480.0,0.00023871,3]
[385956154,1758151838460,-2322.64,0.00023871,2]
[385956155,1758151838469,-480.0,0.00023871,3]
[385956156,1758151838479,-480.0,0.00023871,3]
[385956157,1758151838489,-480.0,0.00023871,3]
[385956158,1758151838499,-480.0,0.00023871,3]
[385956159,1758151838509,-480.0,0.00023871,3]
[385956160,1758151838518,-155.16169014,0.00023871,2]
[385956161,1758151838528,-272.51773386,0.00023871,2]
[385956162,1758151838538,-17488.57028336,0.00023872,2]
[385956163,1758151838551,-1169.7,0.00023872,2]
[385956164,1758151838563,-24889.90583417,0.00023872,2]
[385956165,1758151838572,-500.0,0.00023873,2]
[385956166,1758151838582,-502.23916512,0.00023873,2]
[385956167,1758151838592,-500.0,0.00023873,2]
[385956168,1758151838601,-500.0,0.00023873,2]
[385956169,1758151838612,-500.0,0.00023873,2]
[385956170,1758151838621,-160.0,0.0002396,2]
[385956171,1758151838631,-160.0,0.00023969,3]
[385956172,1758151838641,-480.0,0.00023969,3]
[385956173,1758151838651,-480.0,0.00023969,3]
[385956174,1758151838662,-480.0,0.00023969,3]
[385956175,1758151838672,-480.0,0.00023969,3]
[385956176,1758151838681,-480.0,0.00023969,3]
[385956177,1758151838695,-480.0,0.00023969,3]
[385956178,1758151838704,-3412.52,0.00023969,3]
[385956179,1758151838714,-480.0,0.0002397,3]
[385956180,1758151838724,-480.0,0.0002397,3]
[385956181,1758151838733,-480.0,0.0002397,3]
[385956182,1758151838742,-500.0,0.00023973,2]
[385956183,1758151838751,-500.0,0.00023973,2]
[385956184,1758151838761,-500.0,0.00023973,2]
[385956185,1758151838771,-500.0,0.00023973,2]
[385956186,1758151838780,-500.0,0.00023973,2]
[385956187,1758151838789,-500.0,0.00023973,2]
[385956188,1758151838798,-500.0,0.00023973,2]
[385956189,1758151838807,-500.0,0.00023973,2]
[385956190,1758151838816,-173.00697089,0.00024033,2]
[385956191,1758151838826,-480.0,0.00024143,3]
[385956192,1758151838835,-436.14,0.00024143,3]
[385956193,1758151838846,-480.0,0.00024143,3]
[385956194,1758151838855,-480.0,0.00024143,3]
[385956195,1758151838865,-189.92,0.00024143,3]
[385956196,1758151838873,-480.0,0.00024145,3]
[385956197,1758151838882,-518.98,0.00024145,3]
[385956198,1758151838891,-160.42,0.00024145,3]
[385956199,1758151838900,-480.0,0.00024145,3]
[385956200,1758151838909,-583.2115703,0.00024145,3]
[385956201,1758151838918,-480.0,0.00024145,3]
[385956203,1758151838927,-480.0,0.00024145,3]
[385956205,1758151838936,-480.0,0.00024145,3]
[385956207,1758151838945,-211.56,0.00024145,3]
[385956208,1758151838954,-94.90739935,0.00024145,3]
[385956325,1758151840160,-480.0,0.00023871,3]
[385956326,1758151840170,-385.09260065,0.00024145,3]
[385956329,1758151840181,-40.90739935,0.00024145,3]
[385956583,1758151843114,-163.59697639,0.000235,2]
[385956585,1758151843123,-500.0,0.00023867,2]
[385956587,1758151843132,-500.0,0.00023867,2]
[385956589,1758151843145,-500.0,0.00023867,2]
[385956591,1758151843154,-500.0,0.00023867,2]
[385956593,1758151843163,-138.10302359,0.00023867,2]
[385956603,1758151843242,-361.89697641,0.00023867,2]
[385956605,1758151843251,-501.84830462,0.00023867,2]
[385956607,1758151843260,-500.0,0.00023867,2]
[385956608,1758151843269,-500.0,0.00023867,2]
[385956611,1758151843279,-500.0,0.00023867,2]
[385956614,1758151843288,-500.0,0.00023867,2]
[385956616,1758151843297,-500.0,0.00023867,2]
[385956618,1758151843306,-500.0,0.00023867,2]
[385956620,1758151843315,-500.0,0.00023867,2]
[385956622,1758151843324,-500.0,0.00023867,2]
[385956624,1758151843333,-500.0,0.00023867,2]
[385956626,1758151843342,-500.0,0.00023867,2]
[385956628,1758151843351,-492.5252563,0.00023867,2]
[385956630,1758151843360,-500.0,0.00023867,2]
[385956632,1758151843370,-500.0,0.00023867,2]
[385956634,1758151843380,-369.01798903,0.00023867,2]
[385956636,1758151843389,-500.0,0.00023867,2]
[385956638,1758151843398,-500.0,0.00023867,2]
[385956639,1758151843408,-500.0,0.00023867,2]
[385956640,1758151843418,-500.0,0.00023867,2]
[385956641,1758151843427,-185.97535518,0.00023867,2]
[385956642,1758151843436,-500.0,0.00023867,2]
[385956643,1758151843446,-500.0,0.00023867,2]
[385956644,1758151843455,-500.0,0.00023867,2]
[385956645,1758151843465,-500.0,0.00023867,2]
[385956646,1758151843474,-500.0,0.00023867,2]
[385956647,1758151843483,-619.77056203,0.00023867,2]
[385956648,1758151843493,-500.0,0.00023867,2]
[385956651,1758151843503,-574.06770503,0.00023867,2]
[385956652,1758151843514,-500.0,0.00023867,2]
[385956654,1758151843524,-480.0,0.00023869,3]
[385956656,1758151843533,-480.0,0.00023871,3]
[385956658,1758151843542,-600.0,0.00023871,2]
[385956660,1758151843552,-170.33260065,0.00024145,3]
[385956662,1758151843562,-480.0,0.00024145,3]
[385956664,1758151843571,-480.0,0.00024145,3]
[385956666,1758151843581,-480.0,0.00024145,3]
[385956669,1758151843592,-219.1,0.00024145,3]
[385956671,1758151843602,-480.0,0.00024145,3]
[385956672,1758151843611,-480.0,0.00024145,3]
[385956674,1758151843620,-480.0,0.00024145,3]
[385956676,1758151843630,-480.0,0.00024145,3]
[385956678,1758151843639,-480.0,0.00024145,3]
[385956680,1758151843649,-989.79738296,0.00024167,2]
[385956682,1758151843658,-815.18263978,0.0002424,2]
[385956684,1758151843667,-480.0,0.00024243,3]
[385956687,1758151843677,-480.0,0.00024243,3]
[385956689,1758151843686,-480.0,0.00024243,3]
[385956691,1758151843695,-3412.52,0.00024243,3]
[385956693,1758151843704,-480.0,0.00024244,3]
[385956694,1758151843713,-173.00697089,0.00024298,2]
[385956697,1758151843723,-480.0,0.00024417,3]
[385956698,1758151843731,-480.0,0.00024419,3]
[385956700,1758151843740,-499.26,0.00024419,3]
[385956703,1758151843751,-614.91,0.00024419,3]
[385956705,1758151843759,-480.0,0.00024419,3]
[385956707,1758151843769,-480.0,0.00024419,3]
[385956709,1758151843778,-381.61,0.00024419,3]
[385956712,1758151843788,-480.0,0.00024419,3]
[385956714,1758151843797,-480.0,0.00024419,3]
[385956716,1758151843806,-393.22,0.00024419,3]
[385956718,1758151843815,-480.0,0.00024419,3]
[385956720,1758151843824,-480.0,0.00024419,3]
[385956722,1758151843833,-500.0,0.00024421,2]
[385956724,1758151843843,-1000.0,0.00024421,2]
[385956726,1758151843853,-1000.0,0.00024421,2]
[385956728,1758151843862,-387.09696802,0.00024421,2]
[385956730,1758151843871,-480.0,0.00024517,3]
[385956732,1758151843880,-292.39264023,0.00024517,3]
[385956734,1758151843890,-480.0,0.00024517,3]
[385956736,1758151843899,-3412.52,0.00024517,3]
[385956738,1758151843908,-480.0,0.00024518,3]
[385956740,1758151843917,-1000.0,0.00024521,2]
[385956742,1758151843926,-1000.0,0.00024521,2]
[385956744,1758151843935,-500.0,0.00024521,2]
[385956746,1758151843944,-500.0,0.00024521,2]
[385956748,1758151843954,-173.00697089,0.00024562,2]
[385956750,1758151843963,-150.0,0.00024657,2]
[385956752,1758151843971,-480.0,0.00024691,3]
[385956753,1758151843980,-480.0,0.00024693,3]
[385956756,1758151843990,-365.57,0.00024693,3]
[385956758,1758151843999,-150.26,0.00024693,3]
[385956760,1758151844009,-480.0,0.00024693,3]
[385956762,1758151844018,-244.03,0.00024693,3]
[385956764,1758151844027,-480.0,0.00024693,3]
[385956766,1758151844037,-160.0,0.00024771,2]
[385956768,1758151844046,-480.0,0.00024791,3]
[385956770,1758151844055,-480.0,0.00024791,3]
[385956772,1758151844064,-3412.52,0.00024791,3]
[385956774,1758151844073,-480.0,0.00024792,3]
[385956776,1758151844082,-151.0,0.00024793,3]
[385956778,1758151844091,-151.0,0.00024793,3]
[385956780,1758151844101,-198.0,0.00024793,3]
[385956782,1758151844110,-500.0,0.00024793,3]
[385956783,1758151844119,-151.0,0.00024793,3]
[385956785,1758151844129,-151.0,0.00024793,3]
[385956788,1758151844138,-151.0,0.00024793,3]
[385956790,1758151844151,-151.0,0.00024793,2]
[385956792,1758151844163,-151.0,0.00024793,3]
[385956794,1758151844173,-245.0,0.00024793,3]
[385956796,1758151844183,-10580.3345723,0.000248,2]
[385956809,1758151844297,-834.8349237,0.00024827,2]
[385956811,1758151844308,-173.00697089,0.00024827,2]
[385956813,1758151844317,-307.6574513,0.00024873,2]
[385956815,1758151844327,-500.3388417,0.00024873,2]
[385956817,1758151844336,-500.0,0.00024873,2]
[385956819,1758151844345,-501.99400742,0.00024873,2]
[385956821,1758151844354,-500.0,0.00024873,2]
[385956823,1758151844363,-500.0,0.00024873,2]
[385956825,1758151844372,-160.64292061,0.00024873,2]
[385956827,1758151844382,-500.0,0.00024873,2]
[385956829,1758151844391,-500.0,0.00024873,2]
[385956831,1758151844400,-522.31899085,0.00024873,2]
[385956833,1758151844410,-160.86474523,0.00024873,2]
[385956835,1758151844419,-500.0,0.00024873,2]
[385956837,1758151844428,-500.96478059,0.00024873,2]
[385956839,1758151844437,-500.0,0.00024873,2]
[385956841,1758151844447,-500.0,0.00024873,2]
[385956843,1758151844456,-500.0,0.00024873,2]
[385956845,1758151844466,-264.66208337,0.00024873,2]
[385956847,1758151844475,-500.0,0.00024873,2]
[385956849,1758151844485,-8080.80232794,0.00024895,2]
[385956851,1758151844494,-422.69190466,0.00024895,2]
[385956853,1758151844503,-1690.76761865,0.00024895,2]
[385956856,1758151844513,-3800.42291483,0.00024895,2]
[385956857,1758151844522,-370.61523759,0.00024895,2]
[385956859,1758151844532,-1482.46095035,0.00024895,2]
[385956861,1758151844541,-3332.20160116,0.00024895,2]
[385956863,1758151844550,-3623.33260363,0.00024896,2]
[385956865,1758151844560,-150.0,0.00024899,2]
[385956868,1758151844569,-1590.61827334,0.000249,2]
[385956870,1758151844579,-131377.02795757,0.000249,2]
[385957044,1758151845952,-500.0,0.00023867,2]
[385957047,1758151845962,-480.0,0.00023969,3]
[385957049,1758151845972,-480.0,0.00024243,3]
[385957051,1758151845981,-214.16,0.0002489,3]
[385957053,1758151845991,-2538.0098668,0.000249,2]
[385957347,1758151905674,890.81764478,0.000218,2]
[385957348,1758151905882,890.81764466,0.00022983,2]
[385957349,1758151940388,155.24,0.00022517,2]
[385957351,1758152097186,831.2631129,0.000218,2]
[385957352,1758152097295,831.26311287,0.00022983,2]
[385957354,1758152280465,187.48,0.00021978,3]
[385957355,1758152280978,187.48,0.00021978,3]
[385957356,1758152281308,187.47,0.00021978,3]
[385957357,1758152286187,775.8475812,0.000218,2]
[385957358,1758152286276,775.84758106,0.00022983,2]
[385957361,1758152470364,724.2890667,0.000218,2]
[385957362,1758152470449,724.2890666,0.00022983,2]
[385957363,1758152587768,602.92,0.0002316,2]
[385957364,1758152659464,676.00312902,0.000218,2]
[385957365,1758152659683,676.00312882,0.00022983,2]
[385957369,1758152746305,13000.0,0.00028,30]
[385957370,1758152809024,1337.0,0.0002,7]
[385957371,1758152841232,630.93625372,0.000218,2]
[385957372,1758152841325,630.93625356,0.00022983,2]
[385957391,1758153023456,588.87383683,0.000218,2]
[385957392,1758153023649,588.87383665,0.00022983,2]
[385957430,1758153032196,-532.02252154,0.00023544,2]
[385957432,1758153032206,-1047.43141321,0.00023658,2]
[385957434,1758153032215,-186.79279952,0.00023673,2]
[385957436,1758153032225,-1200.0,0.00023755,2]
[385957438,1758153032234,-1200.0,0.00023756,2]
[385957440,1758153032244,-300.0,0.00023756,2]
[385957442,1758153032253,-300.0,0.00023756,2]
[385957444,1758153032263,-300.0,0.00023756,2]
[385957445,1758153032272,-300.0,0.00023756,2]
[385957447,1758153032281,-300.0,0.00023756,2]
[385957448,1758153032291,-17381.74246342,0.00023757,2]
[385957450,1758153032300,-480.0,0.00023757,3]
[385957452,1758153032310,-480.0,0.00023757,3]
[385957454,1758153032319,-480.0,0.00023757,3]
[385957456,1758153032328,-480.0,0.00023757,3]
[385957458,1758153032338,-480.0,0.00023757,3]
[385957460,1758153032347,-480.0,0.00023757,3]
[385957462,1758153032356,-480.0,0.00023757,3]
[385957463,1758153032366,-480.0,0.00023757,3]
[385957466,1758153032375,-480.0,0.00023757,3]
[385957468,1758153032385,-480.0,0.00023757,3]
[385957470,1758153032395,-480.0,0.00023757,3]
[385957473,1758153032404,-480.0,0.00023757,3]
[385957474,1758153032413,-151.0,0.00023758,2]
[385957476,1758153032422,-151.0,0.00023758,2]
[385957478,1758153032431,-151.0,0.00023758,2]
[385957480,1758153032442,-151.0,0.00023758,2]
[385957482,1758153032451,-500.0,0.00023758,2]
[385957484,1758153032460,-151.0,0.00023758,2]
[385957486,1758153032470,-500.0,0.00023758,2]
[385957488,1758153032479,-166.15641849,0.00023758,2]
[385957490,1758153032488,-500.0,0.00023758,2]
[385957492,1758153032498,-500.0,0.00023758,2]
[385957493,1758153032507,-500.0,0.00023758,2]
[385957496,1758153032516,-500.0,0.00023758,2]
[385957497,1758153032526,-500.0,0.00023758,2]
[385957499,1758153032535,-500.0,0.00023758,2]
[385957502,1758153032548,-500.0,0.00023758,2]
[385957503,1758153032558,-500.0,0.00023758,2]
[385957505,1758153032567,-500.0,0.00023758,2]
[385957506,1758153032577,-500.0,0.00023758,2]
[385957507,1758153032587,-374.47588989,0.00023758,2]
[385957508,1758153032596,-480.0,0.0002377,3]
[385957509,1758153032605,-342.42782134,0.0002377,3]
[385957510,1758153032615,-480.0,0.0002377,3]
[385957511,1758153032625,-480.0,0.0002377,3]
[385957512,1758153032635,-480.0,0.0002377,3]
[385957513,1758153032644,-480.0,0.0002377,3]
[385957514,1758153032654,-480.0,0.0002377,3]
[385957515,1758153032663,-1000.0,0.00023771,2]
[385957516,1758153032673,-290.24000001,0.00023771,2]
[385957517,1758153032682,-2225.86,0.00023771,2]
[385957518,1758153032693,-457.75228467,0.00023771,2]
[385957519,1758153032702,-152.11310989,0.00023771,2]
[385957520,1758153032711,-500.0,0.00023771,2]
[385957521,1758153032721,-500.0,0.00023771,2]
[385957522,1758153032730,-286.00752278,0.00023771,2]
[385957523,1758153032739,-500.0,0.00023771,2]
[385957524,1758153032749,-203.86917872,0.00023771,2]
[385957525,1758153032758,-85932.8543585,0.00023772,2]
[385957526,1758153032770,-2863.3131383,0.00023772,2]
[385957527,1758153032779,-500.0,0.00023773,2]
[385957528,1758153032788,-178.47,0.00023861,3]
[385957529,1758153032798,-535.43,0.00023861,3]
[385957530,1758153032807,-225.16,0.00023869,3]
[385957531,1758153032817,-480.0,0.00023869,3]
[385957532,1758153032826,-150.57324835,0.00023869,3]
[385957533,1758153032836,-219.22176738,0.00023869,3]
[385957534,1758153032847,-288.25823262,0.00023869,3]
[385957535,1758153032856,-480.0,0.00023869,3]
[385957536,1758153032866,-277.16,0.00023869,3]
[385957537,1758153032876,-480.0,0.00023869,3]
[385957539,1758153032886,-480.0,0.00023869,3]
[385957540,1758153032895,-232.14,0.00023869,3]
[385957541,1758153032905,-480.0,0.00023869,3]
[385957542,1758153032914,-480.0,0.00023869,2]
[385957543,1758153032923,-332.13415538,0.00023869,3]
[385957544,1758153032933,-124.24445613,0.00023869,3]
[385957569,1758153038544,-355.75554387,0.00023869,3]
[385957570,1758153038553,-480.0,0.00023869,3]
[385957571,1758153038562,-272.61354789,0.00023869,3]
[385957572,1758153038572,-480.0,0.00023869,3]
[385957573,1758153038581,-480.0,0.00023869,3]
[385957574,1758153038590,-486.06005992,0.00023869,3]
[385957575,1758153038599,-480.0,0.00023869,3]
[385957576,1758153038608,-480.0,0.00023869,3]
[385957577,1758153038618,-480.0,0.00023869,3]
[385957578,1758153038628,-421.52675165,0.00023869,3]
[385957579,1758153038637,-480.0,0.00023869,3]
[385957580,1758153038646,-180.8,0.00023869,3]
[385957581,1758153038655,-480.0,0.00023869,3]
[385957582,1758153038664,-480.0,0.00023869,3]
[385957583,1758153038674,-480.0,0.00023869,3]
[385957584,1758153038683,-547.28,0.00023869,3]
[385957585,1758153038693,-586.6,0.00023869,3]
[385957586,1758153038705,-480.0,0.00023869,3]
[385957587,1758153038714,-480.0,0.00023869,3]
[385957588,1758153038723,-480.0,0.00023869,3]
[385957589,1758153038733,-480.0,0.00023869,3]
[385957590,1758153038743,-480.0,0.00023869,3]
[385957591,1758153038752,-480.0,0.00023869,3]
[385957592,1758153038762,-480.0,0.00023869,3]
[385957593,1758153038771,-480.0,0.00023869,3]
[385957594,1758153038780,-480.0,0.00023869,3]
[385957595,1758153038789,-328.36,0.00023869,3]
[385957596,1758153038799,-3543.03,0.00023869,3]
[385957597,1758153038808,-480.0,0.00023869,3]
[385957598,1758153038817,-480.0,0.00023869,3]
[385957599,1758153038826,-480.0,0.00023869,3]
[385957600,1758153038836,-480.0,0.00023869,3]
[385957601,1758153038845,-574.18,0.00023869,3]
[385957602,1758153038854,-188.4,0.00023869,3]
[385957603,1758153038863,-500.0,0.00023873,2]
[385957604,1758153038872,-465.23206083,0.00023873,2]
[385957605,1758153038882,-317.47048144,0.00023873,2]
[385957606,1758153038891,-500.0,0.00023873,2]
[385957607,1758153038900,-500.0,0.00023873,2]
[385957608,1758153038909,-500.0,0.00023873,2]
[385957609,1758153038919,-500.0,0.00023873,2]
[385957610,1758153038928,-186.79279951,0.00023955,2]
[385957611,1758153038937,-287.70271661,0.00023971,2]
[385957612,1758153038946,-237.47601811,0.00023971,2]
[385957613,1758153038956,-500.0,0.00023971,2]
[385957614,1758153038966,-221.05836245,0.00023971,2]
[385957615,1758153038975,-2242.75575174,0.00023972,2]
[385957616,1758153038985,-480.0,0.00024031,3]
[385957617,1758153038994,-319.97,0.00024031,3]
[385957618,1758153039003,-480.0,0.00024031,3]
[385957619,1758153039013,-492.8,0.00024031,3]
[385957620,1758153039022,-480.0,0.00024031,3]
[385957621,1758153039031,-572.78,0.00024031,3]
[385957622,1758153039040,-480.0,0.00024031,3]
[385957623,1758153039049,-480.0,0.00024031,3]
[385957624,1758153039058,-480.0,0.00024044,3]
[385957625,1758153039067,-480.0,0.00024044,3]
[385957626,1758153039076,-480.0,0.00024044,3]
[385957627,1758153039086,-480.0,0.00024044,3]
[385957628,1758153039095,-480.0,0.00024143,3]
[385957629,1758153039104,-224.8,0.00024143,3]
[385957630,1758153039113,-216.71,0.00024143,3]
[385957631,1758153039122,-480.0,0.00024143,3]
[385957632,1758153039131,-218.52089421,0.00024143,3]
[385957633,1758153039140,-480.0,0.00024143,3]
[385957634,1758153039149,-542.09,0.00024143,3]
[385957635,1758153039158,-480.0,0.00024143,3]
[385957636,1758153039167,-480.0,0.00024143,3]
[385957637,1758153039176,-480.0,0.00024143,3]
[385957638,1758153039185,-355.61366626,0.00024143,3]
[385957639,1758153039194,-480.0,0.00024143,3]
[385957640,1758153039205,-480.0,0.00024143,3]
[385957641,1758153039214,-480.0,0.00024143,3]
[385957642,1758153039223,-493.6,0.00024143,3]
[385957643,1758153039232,-480.0,0.00024143,3]
[385957644,1758153039241,-480.0,0.00024143,3]
[385957645,1758153039250,-541.48248019,0.00024143,3]
[385957646,1758153039259,-3543.03,0.00024143,3]
[385957647,1758153039268,-480.0,0.00024143,3]